Cogmind - Beta 15 @@@ ROGUE MODE // 2025.06.12 @ 13:44:25 // Winter2019/RPGLIKE Player: Jack Result: Destroyed by G-47 Trooper with Particle Gun Performance ------------- Evolutions (3) 1500 Regions Visited (5) 1000 Robots Destroyed (37) 185 Value Destroyed (1268) 1268 Prototype IDs (0) 0 Alien Tech Used (0) 0 Bonus (0) 0 TOTAL SCORE: 3953 Bonus ------- None Cogmind --------- Core Integrity 0/1100 Matter 300/300 Energy 100/100 System Corruption 0% Temperature Cool (9) Movement Hovering (76) Location -7/Factory Parts ------- > --- POWER (1) -------- Backup Power VII > --- PROPULSION (2) --- Backup Propulsion VII Backup Propulsion VII > --- UTILITY (3) ------ Backup Plating VII Backup Plating VII > --- WEAPON (4) ------- Katana Katana > --- INVENTORY (1) ---- Protomatter-44 Peak State ------------ > --- POWER ------------ Backup Power VII > --- PROPULSION ------- Backup Propulsion VII Backup Propulsion VII > --- UTILITY ---------- Backup Plating VII Backup Plating VII > --- WEAPON ----------- Katana Katana > --- INVENTORY -------- (None) [Rating: 41] Favorites ----------- Power Light Ion Engine Engine Light Ion Engine Power Core Backup Power VII Propulsion Flight Unit Hover Unit Backup Propulsion VII Flight Unit Flight Unit Utility Backup Plating VII Protection Backup Plating VII Weapon Light Assault Rifle Ballistic Gun Light Assault Rifle Impact Weapon Flail Slashing Weapon Katana Build | -11 -10 -10 -9 -8 -7 ------- Run | Yrd Mat Min Mat Mat Fac Slots Evolved 6 | 4 . . . . 2 Power . | . . . . . . Propulsion 1 | 1 . . . . . Utility 2 | . . . . . 2 Weapon 3 | 3 . . . . . Parts Attached 12 | 1 5 . 4 . 2 Power 1 | . 1 . . . . Engine 1 | . 1 . . . . Core . | . . . . . . Reactor . | . . . . . . Propulsion 4 | . 2 . 2 . . Treads . | . . . . . . Leg . | . . . . . . Wheel . | . . . . . . Hover . | . . . . . . Flight 4 | . 2 . 2 . . Utility . | . . . . . . Device . | . . . . . . Storage . | . . . . . . Processor . | . . . . . . Hackware . | . . . . . . Protection . | . . . . . . Artifact . | . . . . . . Weapon 7 | 1 2 . 2 . 2 Energy Gun . | . . . . . . Energy Cannon . | . . . . . . Ballistic Gun 4 | 1 2 . 1 . . Ballistic Cannon . | . . . . . . Launcher . | . . . . . . Special Weapon . | . . . . . . Impact Weapon 1 | . . . 1 . . Slashing Weapon 2 | . . . . . 2 Piercing Weapon . | . . . . . . Special Melee Weapon . | . . . . . . Unidentified Prototypes . | . . . . . . Parts Lost 3 | . . . . . 3 Power 1 | . . . . . 1 Propulsion 2 | . . . . . 2 Utility . | . . . . . . Weapon . | . . . . . . Highest Loss Streak 2 | . . . . . 2 To Critical Strikes . | . . . . . . Average Backups . | . . . . . . Power . | . . . . . . Propulsion . | . . . . . . Utility . | . . . . . . Weapon . | . . . . . . Tool/Special . | . . . . . . Unused Backups . | . . . . . . Power . | . . . . . . Propulsion . | . . . . . . Utility . | . . . . . . Weapon . | . . . . . . Tool/Special . | . . . . . . Average Slot Usage (%) 66 | . 54 75 79 87 60 Engine 9 | . 8 12 12 12 7 Hover 1 | . . . . . 2 Flight 19 | . 19 25 25 25 15 Protection 1 | . . . . . 2 Ballistic Gun 29 | . 26 37 41 50 22 Slashing Weapon 4 | . . . . . 9 Peak Build Rating 41 | 1 6 6 8 7 41 Average Rating 9 | . 4 6 6 7 12 On Entrance 4 | . 1 6 6 7 7 Naked Turns . | . . . . . . Heaviest Build 14 | 1 6 6 8 7 14 Greatest Support 29 | 3 8 8 8 8 29 Greatest Overweight (x) . | . . . . . . Average Overweight (x) . | . . . . . . Largest Inventory Capacity 1 | . . . 1 1 1 Average Capacity . | . . . . 1 1 Most Carried 1 | . . . 1 . 1 Average Carried . | . . . . . . Final Capacity 1 | . . . 1 1 1 Final Carried 1 | . . . . . 1 Class Distribution -------------------- 37% | Hacker-Gunner 30% | Scavenger-Gunner 23% | Hacker-Gladiator 4% | Scavenger-Mutant 3% | Mutant Dominant Class ---------------- Scavenger-Gunner | -10/Materials Scavenger-Gunner | -10/Mines Scavenger-Gunner | -9/Materials Hacker-Gunner | -8/Materials Hacker-Gunner | -7/Factory Resources | -11 -10 -10 -9 -8 -7 ----------- Run | Yrd Mat Min Mat Mat Fac Matter Collected 662 | 210 94 . 207 14 137 Remotely . | . . . . . . Salvage Created 1313 | . 227 . 211 71 804 Parts 76 | . 25 . 26 3 22 Haulers Intercepted . | . . . . . . Recyclers Shooed . | . . . . . . Parts Field Recycled . | . . . . . . Retrieved Matter . | . . . . . . Parts Self-Destructed . | . . . . . . Prevented . | . . . . . . Kills | -11 -10 -10 -9 -8 -7 ------- Run | Yrd Mat Min Mat Mat Fac Combat Hostiles Destroyed 35 | . 11 . 10 1 13 Melee 9 | . . . . . 9 Guns 26 | . 11 . 10 1 4 Classes Destroyed 6 | . 2 . 2 . 2 Recycler 1 | . . . . . 1 Operator 1 | . . . 1 . . Swarmer 9 | . 6 . 3 . . Grunt 21 | . 5 . 4 1 11 Sentry 4 | . . . 3 . 1 Hunter 1 | . . . . . 1 Best Kill Streak 4 | . 3 . 3 1 4 Combat Bots Only 4 | . 3 . 3 1 4 Max Kills in Single Turn 1 | . 1 . 1 1 1 Gunslinging . | . . . . . . Exploded . | . . . . . . Melee 1 | . . . . . 1 Uniques/NPCs Destroyed . | . . . . . . Combat | -11 -10 -10 -9 -8 -7 -------- Run | Yrd Mat Min Mat Mat Fac Hostile Shots Fired 299 | . 47 . 64 5 183 Missed 101 | . 18 . 22 3 58 Hits 198 | . 29 . 42 2 125 Projectile 198 | . 29 . 42 2 125 Critical Strikes 2 | . . . . 1 1 Damage Taken 2346 | . 304 . 538 31 1473 Core 1950 | . 265 . 445 24 1216 Absorbed by Shields . | . . . . . . Redirected to Core 1077 | . 120 . 317 24 616 Core Remaining (%) 99 | 100 . 100 100 96 . Volleys Fired 102 | . 35 . 42 3 22 Largest 4 | . 3 . 4 4 4 Hottest 80 | . 60 . 80 80 80 Shots Fired 303 | . 71 . 132 12 88 Gun 303 | . 71 . 132 12 88 Cannon . | . . . . . . Launcher . | . . . . . . Special . | . . . . . . Kinetic 303 | . 71 . 132 12 88 Thermal . | . . . . . . Explosive . | . . . . . . Electromagnetic . | . . . . . . Robot Hit Streak 15 | . 11 . 13 4 15 Robot Miss Streak 6 | . 6 . 3 1 4 Penetration Max . | . . . . . . Secondary Targets . | . . . . . . Shots Hit Robots 233 | . 40 . 89 7 97 Core Hits 87 | . 20 . 30 4 33 Critical Kills . | . . . . . . Critical Parts Destroyed 1 | . . . . . 1 Critical Strikes 8 | . . . . . 8 Destroy 1 | . . . . . 1 Sever 7 | . . . . . 7 Melee Attacks 82 | . . . 6 . 76 Impact 6 | . . . 6 . . Slashing 76 | . . . . . 76 Piercing . | . . . . . . Sneak Attacks 3 | . . . . . 3 Combat Hostiles 2 | . . . . . 2 Follow-up Attacks 9 | . . . . . 9 Damage Inflicted 2976 | . 324 . 711 60 1881 Guns 1513 | . 324 . 711 60 418 Cannons . | . . . . . . Explosions . | . . . . . . Melee 1463 | . . . . . 1463 Ramming . | . . . . . . Kinetic 1513 | . 324 . 711 60 418 Thermal . | . . . . . . Explosive . | . . . . . . Electromagnetic . | . . . . . . Impact . | . . . . . . Slashing 1463 | . . . . . 1463 Piercing . | . . . . . . Highest Corruption . | . . . . . . Average Corruption . | . . . . . . Corruption Purged . | . . . . . . Corruption Blocked . | . . . . . . Overload Shots . | . . . . . . Overflow Damage . | . . . . . . Projectiles . | . . . . . . Explosions . | . . . . . . Melee . | . . . . . . Knockbacks . | . . . . . . Impact . | . . . . . . Kinetic . | . . . . . . Secondary . | . . . . . . Self-Inflicted Damage . | . . . . . . Shots . | . . . . . . Rammed . | . . . . . . Targets Rammed . | . . . . . . Kicked . | . . . . . . Crushed . | . . . . . . Highest Temperature 395 | . 135 . 156 132 395 Average Temperature 88 | . 39 . 61 64 182 Received Heat Transfer 957 | . 99 . 219 36 603 Effects 3 | . . . . . 3 Shutdowns 1 | . . . . . 1 Energy Bleed 1 | . . . . . 1 Matter Decay 1 | . . . . . 1 Siege Activations . | . . . . . . Martial Activations . | . . . . . . Shielding Activations . | . . . . . . Robots Disrupted . | . . . . . . Combat Hostiles . | . . . . . . Robots Corrupted . | . . . . . . Combat Hostiles . | . . . . . . Parts Fried . | . . . . . . Impact Corruptions . | . . . . . . Robots Melted . | . . . . . . Combat Hostiles . | . . . . . . Parts Melted . | . . . . . . Heat Transferred . | . . . . . . Parts Sabotaged . | . . . . . . Parts Stolen . | . . . . . . Parts Stripped . | . . . . . . Power Chain Reactions . | . . . . . . Alert | -11 -10 -10 -9 -8 -7 ------- Run | Yrd Mat Min Mat Mat Fac Maximum Alert Level 1 | . 1 . 1 . . Low Security (%) 90 | 100 58 100 81 100 100 Level 1 9 | . 41 . 18 . . Level 2 . | . . . . . . Level 3 . | . . . . . . Level 4 . | . . . . . . Level 5 . | . . . . . . High Security . | . . . . . . Max Security . | . . . . . . Peak Influence 250 | . 250 97 226 79 174 Initial 97 | . . 97 22 79 24 Average 81 | . 133 78 127 67 51 Influence Increases 1206 | . 350 . 336 26 494 Destroy 0b10 Robot/C 700 | . 220 . 200 20 260 Destroy 0b10 Robot/NC 10 | . . . 5 . 5 Destroy Leader 150 | . 40 . 50 . 60 Successful Hack 32 | . . . 4 6 22 Disable Machine 15 | . . . . . 15 Destroy Structure 14 | . . . 2 . 12 Partial Spotted 30 | . . . 30 . . Lose Combat Pursuer 255 | . 90 . 45 . 120 Influence Decreases 1038 | . 100 193 205 159 381 Entered New Map 328 | . . 153 35 109 31 Time Decay 680 | . 100 40 170 50 320 Lost Part 30 | . . . . . 30 Squads Dispatched 6 | . 1 . . . 5 Investigation 4 | . . . . . 4 Extermination 1 | . . . . . 1 Reinforcement 1 | . 1 . . . . Assault . | . . . . . . Garrison . | . . . . . . Intercept . | . . . . . . Searches Triggered . | . . . . . . Construction Impeded . | . . . . . . Haulers Reinforced . | . . . . . . Active Scanning Responses . | . . . . . . Cargo Convoy Interrupts . | . . . . . . Stealth | -11 -10 -10 -9 -8 -7 --------- Run | Yrd Mat Min Mat Mat Fac Distress Signals 3 | . 1 . 2 . . Communications Jammed . | . . . . . . Distress Signals . | . . . . . . Times Spotted 62 | . 16 . 18 6 22 Peak Tracking Total 12 | . 7 . 5 12 4 Tactical Retreats 9 | . 3 . 2 . 4 Traps | -11 -10 -10 -9 -8 -7 ------- Run | Yrd Mat Min Mat Mat Fac Traps Triggered 1 | . . . . . 1 Indirectly . | . . . . . . Trap Hack Attempts . | . . . . . . Triggered . | . . . . . . Disarmed . | . . . . . . Reprogrammed . | . . . . . . Reused . | . . . . . . Traps Extracted . | . . . . . . Installed . | . . . . . . Triggered . | . . . . . . Machines | -11 -10 -10 -9 -8 -7 ---------- Run | Yrd Mat Min Mat Mat Fac Machines Disabled 1 | . . . . . 1 Max in Single Turn 1 | . . . . . 1 Machines Repaired . | . . . . . . Machines Dismantled . | . . . . . . Machines Sabotaged . | . . . . . . Overloaded Fab Kills . | . . . . . . Hacking | -11 -10 -10 -9 -8 -7 --------- Run | Yrd Mat Min Mat Mat Fac Machines Accessed 8 | . . . 1 1 6 Terminals 3 | . . . 1 1 1 Fabricators 4 | . . . . . 4 Repair Stations 1 | . . . . . 1 Recycling Units . | . . . . . . Scanalyzers . | . . . . . . Garrison Access . | . . . . . . Total Hacks 25 | . . . 1 4 20 Successful 17 | . . . 1 2 14 Failed 7 | . . . . 1 6 Catastrophic . | . . . . . . Database Lockouts 1 | . . . . 1 . Manual 14 | . . . 1 4 9 Terminals 11 | . . . 1 4 6 Fabricators 13 | . . . . . 13 Repair Stations 1 | . . . . . 1 Recycling Units . | . . . . . . Scanalyzers . | . . . . . . Garrison Access . | . . . . . . Terminal Hacks 5 | . . . . 2 3 Part Schematic 3 | . . . . 1 2 Level Access Points 1 | . . . . 1 . Fabricator Index 1 | . . . . . 1 Fabricator Hacks 7 | . . . . . 7 Load Schematic 4 | . . . . . 4 Build 3 | . . . . . 3 Repair Station Hacks 1 | . . . . . 1 Refit 1 | . . . . . 1 Recycling Unit Hacks . | . . . . . . Scanalyzer . | . . . . . . Garrison Access Hacks . | . . . . . . Unauthorized Hacks 4 | . . . 1 . 3 Terminals 1 | . . . 1 . . Operators 1 | . . . 1 . . Fabricators 3 | . . . . . 3 Prioritize 3 | . . . . . 3 Repair Stations . | . . . . . . Recycling Units . | . . . . . . Scanalyzers . | . . . . . . Garrison Access . | . . . . . . Data Cores Recovered 1 | . . . 1 . . Used . | . . . . . . Hacking Detections 8 | . . . 1 1 6 Full Trace Events 5 | . . . . 1 4 Feedback Events . | . . . . . . Feedback Blocked . | . . . . . . Robot Schematics Acquired . | . . . . . . Robots Built . | . . . . . . Authchips . | . . . . . . Time . | . . . . . . Total Robot Build Rating . | . . . . . . Part Schematics Acquired 3 | . . . . 1 2 Parts Built 6 | . . . . . 6 Authchips . | . . . . . . Time 114 | . . . . . 114 Total Part Build Rating 20 | . . . . . 20 Parts Repaired . | . . . . . . Time . | . . . . . . Parts Recycled . | . . . . . . Recycled Matter . | . . . . . . Retrieved Matter . | . . . . . . Retrieved Components . | . . . . . . Parts Scanalyzed . | . . . . . . Part Schematics Acquired . | . . . . . . Parts Damaged . | . . . . . . Bothacking | -11 -10 -10 -9 -8 -7 ------------ Run | Yrd Mat Min Mat Mat Fac Used RIF Installer . | . . . . . . Robots Hacked . | . . . . . . Non-combat . | . . . . . . Combat . | . . . . . . Robot Hacks Applied . | . . . . . . Relay Couplers Released . | . . . . . . Fabnet Peak Effective % . | . . . . . . Robots Rewired . | . . . . . . Allies Hacked . | . . . . . . Hacks Repelled . | . . . . . . Allies | -11 -10 -10 -9 -8 -7 -------- Run | Yrd Mat Min Mat Mat Fac Total Allies . | . . . . . . Largest Group . | . . . . . . Highest-Rated Group . | . . . . . . Highest-Rated Ally . | . . . . . . Total Orders . | . . . . . . Ally Attacks . | . . . . . . Total Damage . | . . . . . . Kills . | . . . . . . Allies Corrupted . | . . . . . . Allies Melted . | . . . . . . Intel | -11 -10 -10 -9 -8 -7 ------- Run | Yrd Mat Min Mat Mat Fac Active Infowar (turns) . | . . . . . . Robot Analysis Total . | . . . . . . Derelict Logs Recovered 1 | . . 1 . . . Drone Launches . | . . . . . . Drone Recoveries . | . . . . . . Exploration | -11 -10 -10 -9 -8 -7 ------------- Run | Yrd Mat Min Mat Mat Fac Turns Passed 1578 | 14 214 92 352 100 806 Spaces Moved 1752 | 25 180 246 415 234 652 Core 102 | 25 28 . . . 49 Treads . | . . . . . . Legs . | . . . . . . Wheels . | . . . . . . Hover 46 | . . . . . 46 Flight 1604 | . 152 246 415 234 557 Fastest Speed 37 | 50 37 37 37 37 37 Average Speed 38 | 50 39 37 37 37 40 Slowest Speed 76 | 50 50 37 37 37 76 Overloaded Moves . | . . . . . . Propulsion Burnouts . | . . . . . . Robots Hopped 24 | . 4 2 9 3 6 Potential Cave-ins 4 | . . . 4 . . Cave-ins Triggered . | . . . . . . Exploration Rate (%) 27 | 3 29 56 37 19 20 Regions Visited 5 Branch Regions 1 Pre-discovered Areas . | . . . . . . Known Exits Taken 1 | . . . . 1 . Unknown Exits Taken 4 | 1 1 1 1 . . Scrap Searched . | . . . . . . Spaces Dug 20 | . . . 6 . 14 Terrain Destroyed 20 | . . . 6 . 14 Melee 20 | . . . 6 . 14 Projectile . | . . . . . . AOE . | . . . . . . Terrain Rammed . | . . . . . . Walls Destroyed . | . . . . . . Machines Disabled . | . . . . . . Actions | -11 -10 -10 -9 -8 -7 --------- Run | Yrd Mat Min Mat Mat Fac Total 2356 | 25 269 244 525 238 1055 Wait 378 | . 38 1 37 5 297 Move 1699 | 24 171 241 396 227 640 Hop 24 | . 4 2 9 3 6 Pick Up 4 | . . . 2 . 2 Fast Attach 9 | 1 5 . 1 . 2 Attach 1 | . . . 1 . . Detach . | . . . . . . Swap 3 | . . . 3 . . Drop 9 | . . . 4 . 5 Fire 102 | . 35 . 42 3 22 Melee 66 | . . . 6 . 60 Ram . | . . . . . . Kick . | . . . . . . Crush . | . . . . . . Escape Stasis 15 | . . . . . 15 Rewire . | . . . . . . Trap . | . . . . . . Miscellaneous 46 | . 16 . 24 . 6 Route ------- -11/Scrapyard -10/Materials -10/Mines -9/Materials (discovered 2 exits: *Mat x2) -8/Materials (discovered 3 exits: *Fac x3) -7/Factory (discovered 1 exit: [*Fac]) History --------- Turn | Location | Event 6 | -11/Scrapyard | Discovered new exit (range 15) 7 | -11/Scrapyard | Upgraded with Propulsion slot (x1) 7 | -11/Scrapyard | Upgraded with Weapon slot (x3) 15 | -11/Scrapyard | Entered Materials 82 | -10/Materials | Discovered new exit (range 14) 229 | -10/Materials | Entered Mines 231 | -10/Mines | Reached level 2 233 | -10/Mines | Found a hidden stash of uninstalled traps 238 | -10/Mines | Learned Materials terminal intel 318 | -10/Mines | Discovered new exit (range 9) 321 | -10/Mines | Entered Materials 322 | -9/Materials | Loaded intel: 8 terminal locations 323 | -9/Materials | Reached level 3 451 | -9/Materials | Build established: Scavenger-Gunner 540 | -9/Materials | Reached level 4 577 | -9/Materials | Discovered new exit (range 4) 663 | -9/Materials | Discovered new exit (range 9) 673 | -9/Materials | Entered another Materials area 675 | -8/Materials | Reached level 5 702 | -8/Materials | Central database locked down 704 | -8/Materials | Identified exit to Factory 773 | -8/Materials | Entered Factory 775 | -7/Factory | Reached level 6 792 | -7/Factory | Upgraded with Utility slot (x2) 927 | -7/Factory | Build established: Hacker-Gunner 1080 | -7/Factory | Core integrity fell below 50% 1195 | -7/Factory | Fabricated Katana? 1280 | -7/Factory | Discovered new exit (range 16) 1385 | -7/Factory | Core integrity fell below 20% 1485 | -7/Factory | Fabricated Microactuators? 1508 | -7/Factory | Build established: Hacker-Gladiator 1519 | -7/Factory | Reached level 7 1533 | -7/Factory | Fabricated Katana? 1579 | -7/Factory | Destroyed by G-47 Trooper with Particle Gun Last Messages --------------- G-47 Trooper Lgt. Nuclear Core severed. Upgraded: Core Integrity (+100) G-47 Trooper destroyed. >> FABRICATOR: Completed Katana? R-06 Scavenger collects Aluminum Leg. R-06 Scavenger collects Imp. Heat Sink. K-01 Serf cleans the Fabricator. R-06 Scavenger collects Lgt. Nuclear Core. G-50 Soldier destroyed. Acquired Protomatter-44. R-06 Scavenger collects Hvy. Laser. K-01 Serf cleans the Fabricator. Upgraded: Core Integrity (+100) G-47 Trooper destroyed. Katana follow-up attack on G-47 Trooper. Critical hit (Burn: +37). Katana follow-up attack on G-47 Trooper. G-47 Trooper Aluminum Leg severed. K-01 Serf cleans the Fabricator. Katana follow-up attack on G-47 Trooper. Map ----- +----------------------------------------------------+ | ???????????????????????????????????# """ """ ## | | ???????????????????????????????????# """ """ ## | | ???????????????????????????????????# ## | | ???????????????????????????????????# """ """ ## | | ???????????????????????????????????# """ """ ## | | ???????????????????????????????????# """ """ ## | | ???????????????????????????????????# !"" | | ???????????????????????????????????# """ """ ## | | ???????????????????????????????????# """ """ #### | | ???????????????????????????????????# """ """ #??? | | ???????????????????????????????????# ##?? | | ???????????????????????????????????# "#?? | | ???????????????????????????????????###########"#?? | | ??????????????????????????????????????????????##?# | | ?????????????????????????????????????????????????? | | ?????????????????????????????????????????????????# | | ???????????????????????????#########?????????????# | | ??????????????????????????# #?????????????# | | ??????????????????????????# """"" #?????????????# | | ??????????????????????????# """"" #?????????????# | | ??????????????????????????# """ #?????????????# | | ??????????????????????????# !#?????????????# | | ??????????????????????????# ############### | | ??????????????????????????# " " # ## | | ???????????????????????####="R" # """" ## | | ???????????????????????# @gg"""% # ""R"" ## | | ????????????#####/#########/###+#### "" "" ## | | ???????????? *% % + #? | | ???????????? = # """ """ #? | | ??????????????"""" + """ """ #? | | ???????????????""" # """ """ #? | | ???????????????""" [[ # #? | | ??????????????"""" / ######## #? | | ??????????????"""" #??????# #? | | ??????????????"""" ""/"" #??????# #? | | ???????????? "F/"" #?????######+########? | | ??????????? """"" #?????# # #???????? | | ???????????? #?????# # #???????? | | ?????????????? #?????# # #???????? | | ??????????????## ###+####?????# # #???????? | | ???????????????# ?????????????# "" + #???????? | | ???????????????? ??????????????# " # #???????? | | ????????????????? ??????????????# "F # ######### | | ????????????????? ???????????????# "" # " ! # | | ??????????????????????????????????# # # | | ??????????????????????????????????###### # | | ??????????????????????????????????????? # " | | ??????????????????????????????????????## # | | ???????????????????????????????????????# # | | ???????????????????????????????????????# # # | +----------------------------------------------------+ Best States ------------- Heat Dissipation 37 Energy Generation 17 Energy Capacity 125 Matter Stores 300 Matter Capacity 300 Sight Range 16 Terrain Scan Density 10 Armor Coverage 160 Evasion (%) 62 Offensive Hacking 30 Defensive Hacking 10 Item Schematics ----------------- Katana | -8/Materials | Hacked Microactuators | -7/Factory | Hacked Actuator Array | -7/Factory | Hacked Robot Schematics ------------------ None Fabricated ------------ Katana | x2 | -7/Factory Microactuators | x2 | -7/Factory Katana | x2 | -7/Factory Repaired ---------- Nothing Alien Tech Used ----------------- None Achievements -------------- None Challenges ------------ None RPGLIKE | -11 -10 -10 -9 -8 -7 --------- Run | Yrd Mat Min Mat Mat Fac Levels Raised 6 | . . 1 2 1 2 XP Earned 12445 | 3000 1300 500 2750 1630 3265 XP Spent 10270 | 2900 . . 2250 2200 2920 Upgrades 28 | 4 . . 5 2 17 Propulsion Slot 1 | 1 . . . . . Utility Slot 2 | . . . . . 2 Weapon Slot 3 | 3 . . . . . Core Integrity 10 | . . . . . 10 Heat Dissipation 2 | . . . . . 2 Mass Support 1 | . . . . . 1 Inventory Capacity 1 | . . . 1 . . Hack Attack % 6 | . . . 4 2 . Hack Defense % 2 | . . . . . 2 Protomatter Created 451 | . 107 . 205 . 139 Integrity Restored 946 | . 313 . 495 . 138 Core 848 | . 265 . 445 . 138 Parts 98 | . 48 . 50 . . Protomatter Decayed 37 | . . . 37 . . Game ------ Seed PortableDroneShifter Manual? 0 Play Time 00:21:38 Cumulative 285.0 hours Start 2025.06.12 @ 13:13:29 End 2025.06.12 @ 13:44:25 Sessions 1 Manual Loads 0 Difficulty Rogue Special Mode Winter2019/RPGLIKE Game No. 281 Rogue 92 Adventurer 177 Explorer 12 Win Type - Total 65 Types 19/1/16/2/12/0/4/5/0/6 Lore% 57 Gallery% 55 Achievement% 72 Wizard Run 0 Options --------- Layout 0 ASCII 0 Keyboard 0 Movement Numpad Keybinds 0 Fullscreen 2 Font 12/Smallcaps Map View 83x54 Zoom Use 11% Tactical HUD 0 Map Filters NONE Filters NONE Steam 1 RUN: 7a193848-6603-40fd-bb4b-e89110d66287